fUST/lending_fUST_20241019
["ID","MTS","AMOUNT","RATE_DAILY","PERIOD"]
[340479549,1729291849848,-484.64106733,0.00013972,2]
[340479550,1729291849858,-1030.46,0.00013972,2]
[340479551,1729291849868,-500.0,0.00013972,2]
[340479552,1729291849878,-1160.09,0.00013972,2]
[340479553,1729291849894,-994.82,0.00013972,2]
[340479554,1729291849905,-500.0,0.00013972,2]
[340479555,1729291849916,-500.0,0.00013972,2]
[340479556,1729291849926,-515.12,0.00013972,2]
[340479557,1729291849936,-883.44,0.00013972,2]
[340479558,1729291849947,-1048.82,0.00013972,2]
[340479559,1729291849959,-43835.78,0.00013972,2]
[340479560,1729291849968,-739.77,0.00013972,2]
[340479561,1729291849977,-500.0,0.00013972,2]
[340479562,1729291849987,-1185.43,0.00013972,2]
[340479563,1729291849996,-5542.64,0.00013972,2]
[340479564,1729291850006,-535.73,0.00013972,2]
[340479565,1729291850015,-500.0,0.00013972,2]
[340479566,1729291850027,-500.0,0.00013972,2]
[340479567,1729291850037,-500.0,0.00013972,2]
[340479568,1729291850048,-681.76,0.00013972,2]
[340479569,1729291850059,-714.78,0.00013972,2]
[340479570,1729291850069,-500.0,0.00013972,2]
[340479571,1729291850080,-500.0,0.00013972,2]
[340479572,1729291850092,-500.0,0.00013973,2]
[340479573,1729291850102,-500.0,0.00013973,2]
[340479574,1729291850112,-150.112233,0.00014,2]
[340479575,1729291850122,-150.112233,0.00014,2]
[340479576,1729291850132,-1000.0,0.00014,2]
[340479577,1729291850142,-178.69240605,0.0001404,2]
[340479578,1729291850153,-150.112233,0.000141,2]
[340479579,1729291850163,-150.112233,0.000141,2]
[340479580,1729291850174,-635.09,0.00014104,2]
[340479581,1729291850184,-222.156,0.00014138,2]
[340479582,1729291850195,-250.0,0.0001414,2]
[340479583,1729291850205,-150.112233,0.000142,2]
[340479584,1729291850214,-500.0,0.00014246,2]
[340479585,1729291850224,-518.46,0.00014246,2]
[340479586,1729291850233,-728.58,0.00014246,2]
[340479587,1729291850244,-671.75,0.00014246,2]
[340479588,1729291850254,-706.39,0.00014246,2]
[340479589,1729291850264,-1056.77,0.00014246,2]
[340479590,1729291850273,-500.0,0.00014246,2]
[340479591,1729291850282,-634.78277052,0.00014246,2]
[340479592,1729291850292,-629.46,0.00014246,2]
[340479593,1729291850301,-607.53,0.00014246,2]
[340479594,1729291850310,-500.0,0.00014246,2]
[340479595,1729291850320,-649.49,0.00014246,2]
[340479596,1729291850330,-674.46,0.00014246,2]
[340479597,1729291850340,-500.0,0.00014246,2]
[340479598,1729291850349,-500.0,0.00014246,2]
[340479599,1729291850359,-829.82,0.00014246,2]
[340479600,1729291850368,-663.46,0.00014246,2]
[340479601,1729291850377,-500.0,0.00014246,2]
[340479602,1729291850387,-614.35,0.00014246,2]
[340479603,1729291850397,-500.0,0.00014246,2]
[340479604,1729291850406,-500.0,0.00014246,2]
[340479605,1729291850416,-610.87387525,0.00014246,2]
[340479606,1729291850426,-580.4,0.00014246,2]
[340479607,1729291850435,-949.53,0.00014246,2]
[340479608,1729291850444,-500.0,0.00014246,2]
[340479609,1729291850454,-701.62,0.00014246,2]
[340479610,1729291850464,-833.17,0.00014246,2]
[340479611,1729291850474,-633.06,0.00014246,2]
[340479612,1729291850485,-1000.0,0.00014246,2]
[340479613,1729291850494,-906.63,0.00014246,2]
[340479614,1729291850503,-673.81,0.00014246,2]
[340479615,1729291850513,-748.02,0.00014246,2]
[340479616,1729291850523,-500.0,0.00014246,2]
[340479617,1729291850533,-627.0,0.00014246,2]
[340479618,1729291850542,-518.61,0.00014246,2]
[340479619,1729291850552,-940.92,0.00014246,2]
[340479620,1729291850561,-500.0,0.00014246,2]
[340479621,1729291850571,-500.0,0.00014246,2]
[340479622,1729291850582,-545.62,0.00014246,2]
[340479623,1729291850592,-1590.53,0.00014246,2]
[340479624,1729291850605,-655.37,0.00014246,2]
[340479625,1729291850615,-1005.93,0.00014246,2]
[340479626,1729291850624,-500.0,0.00014246,2]
[340479627,1729291850636,-500.0,0.00014246,2]
[340479628,1729291850647,-500.0,0.00014246,2]
[340479629,1729291850656,-560.93,0.00014246,2]
[340479630,1729291850666,-1345.81,0.00014246,2]
[340479631,1729291850677,-500.0,0.00014246,2]
[340479632,1729291850688,-500.0,0.00014246,2]
[340479633,1729291850700,-808.47,0.00014246,2]
[340479634,1729291850710,-500.0,0.00014246,2]
[340479635,1729291850721,-500.0,0.00014246,2]
[340479636,1729291850730,-958.47,0.00014246,2]
[340479637,1729291850740,-500.0,0.00014246,2]
[340479638,1729291850749,-500.0,0.00014246,2]
[340479639,1729291850758,-725.08,0.00014246,2]
[340479640,1729291850767,-500.0,0.00014246,2]
[340479641,1729291850776,-606.85,0.00014246,2]
[340479642,1729291850785,-995.34,0.00014246,2]
[340479643,1729291850794,-500.0,0.00014246,2]
[340479644,1729291850804,-1927.12,0.00014246,2]
[340479645,1729291850815,-500.0,0.00014246,2]
[340479646,1729291850825,-500.0,0.00014246,2]
[340479647,1729291850835,-500.0,0.00014246,2]
[340479648,1729291850846,-684.7,0.00014246,2]
[340479649,1729291850856,-633.19,0.00014246,2]
[340479650,1729291850866,-659.75,0.00014246,2]
[340479651,1729291850877,-500.0,0.00014246,2]
[340479652,1729291850887,-607.03,0.00014246,2]
[340479653,1729291850899,-500.0,0.00014246,2]
[340479654,1729291850909,-500.0,0.00014246,2]
[340479655,1729291850919,-500.0,0.00014246,2]
[340479656,1729291850928,-582.52,0.00014246,2]
[340479657,1729291850939,-500.0,0.00014246,2]
[340479658,1729291850950,-500.0,0.00014246,2]
[340479659,1729291850961,-500.0,0.00014246,2]
[340479660,1729291850971,-981.61,0.00014246,2]
[340479661,1729291850981,-500.0,0.00014246,2]
[340479662,1729291850992,-1829.57,0.00014246,2]
[340479663,1729291851002,-1010.37,0.00014246,2]
[340479664,1729291851011,-794.19,0.00014246,2]
[340479665,1729291851023,-500.0,0.00014246,2]
[340479666,1729291851034,-962.66,0.00014246,2]
[340479667,1729291851046,-760.7,0.00014246,2]
[340479668,1729291851058,-2750.42,0.00014246,2]
[340479669,1729291851069,-744.46,0.00014246,2]
[340479670,1729291851079,-392.06081966,0.00014246,2]
[340479671,1729291851090,-500.0,0.00014246,2]
[340479672,1729291851100,-500.0,0.00014246,2]
[340479673,1729291851110,-500.0,0.00014246,2]
[340479674,1729291851119,-670.38,0.00014246,2]
[340479675,1729291851129,-500.0,0.00014246,2]
[340479676,1729291851139,-874.82,0.00014246,2]
[340479677,1729291851148,-500.0,0.00014246,2]
[340479678,1729291851159,-500.0,0.00014246,2]
[340479679,1729291851169,-500.0,0.00014246,2]
[340479680,1729291851180,-956.55,0.00014246,2]
[340479681,1729291851190,-500.0,0.00014246,2]
[340479682,1729291851199,-639.04,0.00014246,2]
[340479683,1729291851210,-500.0,0.00014246,2]
[340479684,1729291851221,-831.11,0.00014246,2]
[340479685,1729291851231,-500.0,0.00014246,2]
[340479686,1729291851241,-506.71,0.00014246,2]
[340479687,1729291851250,-500.0,0.00014246,2]
[340479688,1729291851260,-1189.28,0.00014246,2]
[340479689,1729291851271,-544.67,0.00014246,2]
[340479690,1729291851280,-572.11,0.00014246,2]
[340479691,1729291851338,-500.0,0.00014246,2]
[340479692,1729291851350,-861.55,0.00014246,2]
[340479693,1729291851360,-500.0,0.00014246,2]
[340479694,1729291851370,-500.0,0.00014246,2]
[340479695,1729291851381,-500.0,0.00014246,2]
[340479696,1729291851391,-671.0,0.00014246,2]
[340479697,1729291851401,-500.0,0.00014246,2]
[340479698,1729291851411,-500.0,0.00014246,2]
[340479699,1729291851420,-500.0,0.00014246,2]
[340479700,1729291851430,-500.0,0.00014246,2]
[340479701,1729291851440,-1034.67,0.00014246,2]
[340479702,1729291851451,-500.0,0.00014246,2]
[340479703,1729291851462,-1730.12,0.00014246,2]
[340479704,1729291851474,-500.0,0.00014246,2]
[340479705,1729291851483,-500.0,0.00014246,2]
[340479706,1729291851494,-500.0,0.00014246,2]
[340479707,1729291851503,-500.0,0.00014246,2]
[340479708,1729291851513,-345.90312946,0.00014246,2]
[340479709,1729291851522,-1845.83,0.00014246,2]
[340479710,1729291851532,-500.0,0.00014246,2]
[340479711,1729291851542,-1306.8,0.00014246,2]
[340479712,1729291851553,-680.84,0.00014246,2]
[340479713,1729291851563,-667.45,0.00014246,2]
[340479714,1729291851573,-500.0,0.00014246,2]
[340479715,1729291851583,-856.47,0.00014246,2]
[340479716,1729291851592,-261.20227421,0.00014246,2]
[340479717,1729291851603,-500.0,0.00014246,2]
[340479718,1729291851613,-853.95,0.00014246,2]
[340479719,1729291851622,-1778.08,0.00014246,2]
[340479720,1729291851632,-500.0,0.00014246,2]
[340479721,1729291851643,-507.74413458,0.00014246,2]
[340479722,1729291851652,-616.44,0.00014246,2]
[340479723,1729291851662,-2120.38,0.00014246,2]
[340479724,1729291851672,-500.0,0.00014246,2]
[340479725,1729291851681,-505.13,0.00014246,2]
[340479726,1729291851691,-638.22,0.00014246,2]
[340479727,1729291851701,-500.0,0.00014246,2]
[340479728,1729291851711,-500.0,0.00014246,2]
[340479729,1729291851721,-500.0,0.00014246,2]
[340479730,1729291851732,-552.77,0.00014246,2]
[340479731,1729291851742,-500.0,0.00014246,2]
[340479732,1729291851753,-238.45593334,0.00014246,2]
[340479733,1729291851763,-1243.09,0.00014246,2]
[340479734,1729291851775,-500.0,0.00014246,2]
[340479735,1729291851784,-1877.71,0.00014246,2]
[340479736,1729291851794,-904.73,0.00014246,2]
[340479737,1729291851804,-1020.94,0.00014246,2]
[340479738,1729291851815,-853.41,0.00014246,2]
[340479739,1729291851825,-512.28,0.00014246,2]
[340479740,1729291851835,-615.72784257,0.00014246,2]
[340479741,1729291851846,-500.0,0.00014246,2]
[340479742,1729291851857,-500.0,0.00014246,2]
[340479743,1729291851867,-500.0,0.00014246,2]
[340479744,1729291851877,-806.34,0.00014246,2]
[340479745,1729291851888,-500.0,0.00014246,2]
[340479746,1729291851899,-1095.06,0.00014246,2]
[340479747,1729291851908,-747.11,0.00014246,2]
[340479748,1729291851919,-1119.35,0.00014246,2]
[340479749,1729291851931,-668.58,0.00014246,2]
[340479750,1729291851940,-1416.54,0.00014246,2]
[340479751,1729291851950,-846.55,0.00014246,2]
[340479752,1729291851959,-500.0,0.00014246,2]
[340479753,1729291851969,-1243.22,0.00014246,2]
[340479754,1729291851980,-500.0,0.00014246,2]
[340479755,1729291851989,-514.85,0.00014246,2]
[340479756,1729291851999,-669.01,0.00014246,2]
[340479757,1729291852010,-673.18,0.00014246,2]
[340479758,1729291852019,-542.97,0.00014246,2]
[340479759,1729291852030,-539.5,0.00014246,2]
[340479760,1729291852041,-936.78,0.00014246,2]
[340479761,1729291852051,-726.96,0.00014246,2]
[340479762,1729291852062,-500.0,0.00014246,2]
[340479763,1729291852072,-971.17,0.00014246,2]
[340479764,1729291852082,-5586.53,0.00014246,2]
[340479765,1729291852091,-1862.55,0.00014246,2]
[340479766,1729291852101,-550.21,0.00014246,2]
[340479767,1729291852112,-1290.46,0.00014246,2]
[340479768,1729291852123,-500.0,0.00014246,2]
[340479769,1729291852133,-742.47,0.00014246,2]
[340479770,1729291852145,-1419.77,0.00014246,2]
[340479771,1729291852155,-1014.6,0.00014246,2]
[340479772,1729291852166,-505.28,0.00014246,2]
[340479773,1729291852176,-500.0,0.00014246,2]
[340479774,1729291852187,-500.0,0.00014246,2]
[340479775,1729291852199,-768.91,0.00014246,2]
[340479776,1729291852209,-500.0,0.00014246,2]
[340479777,1729291852220,-556.94,0.00014246,2]
[340479778,1729291852232,-1030.46,0.00014246,2]
[340479779,1729291852242,-500.0,0.00014246,2]
[340479780,1729291852252,-1160.09,0.00014246,2]
[340479781,1729291852262,-994.82,0.00014246,2]
[340479782,1729291852271,-500.0,0.00014246,2]
[340479783,1729291852280,-500.0,0.00014246,2]
[340479784,1729291852291,-515.12,0.00014246,2]
[340479785,1729291852301,-883.44,0.00014246,2]
[340479786,1729291852310,-1048.82,0.00014246,2]
[340479787,1729291852320,-43835.78,0.00014246,2]
[340479788,1729291852329,-739.77,0.00014246,2]
[340479789,1729291852339,-500.0,0.00014246,2]
[340479790,1729291852349,-1185.43,0.00014246,2]
[340479791,1729291852358,-5542.64,0.00014246,2]
[340479792,1729291852368,-535.73,0.00014246,2]
[340479793,1729291852377,-500.0,0.00014246,2]
[340479794,1729291852388,-579.11000192,0.00014246,2]
[340479795,1729291852397,-500.0,0.00014246,2]
[340479796,1729291852407,-681.76,0.00014246,2]
[340479797,1729291852417,-500.0,0.00014246,2]
[340479798,1729291852426,-714.78,0.00014246,2]
[340479799,1729291852436,-500.0,0.00014246,2]
[340479800,1729291852445,-500.0,0.00014287,2]
[340479801,1729291852455,-1019.015752,0.00014384,2]
[340479802,1729291852464,-548.09625504,0.0001452,2]
[340479803,1729291852474,-518.46,0.0001452,2]
[340479804,1729291852484,-728.58,0.0001452,2]
[340479805,1729291852493,-671.75,0.0001452,2]
[340479806,1729291852514,-706.39,0.0001452,2]
[340479807,1729291852524,-1056.77,0.0001452,2]
[340479808,1729291852534,-500.0,0.0001452,2]
[340479809,1729291852544,-629.46,0.0001452,2]
[340479810,1729291852553,-607.53,0.0001452,2]
[340479811,1729291852563,-500.0,0.0001452,2]
[340479812,1729291852573,-649.49,0.0001452,2]
[340479813,1729291852583,-674.46,0.0001452,2]
[340479814,1729291852593,-500.0,0.0001452,2]
[340479815,1729291852606,-500.0,0.0001452,2]
[340479816,1729291852616,-829.82,0.0001452,2]
[340479817,1729291852626,-663.46,0.0001452,2]
[340479818,1729291852636,-614.35,0.0001452,2]
[340479819,1729291852646,-500.0,0.0001452,2]
[340479820,1729291852656,-500.0,0.0001452,2]
[340479821,1729291852666,-580.4,0.0001452,2]
[340479822,1729291852677,-949.53,0.0001452,2]
[340479823,1729291852687,-500.0,0.0001452,2]
[340479824,1729291852696,-701.62,0.0001452,2]
[340479825,1729291852707,-833.17,0.0001452,2]
[340479826,1729291852716,-633.06,0.0001452,2]
[340479827,1729291852727,-1000.0,0.0001452,2]
[340479828,1729291852737,-906.63,0.0001452,2]
[340479829,1729291852747,-673.81,0.0001452,2]
[340479830,1729291852756,-748.02,0.0001452,2]
[340479831,1729291852766,-500.0,0.0001452,2]
[340479832,1729291852776,-627.0,0.0001452,2]
[340479833,1729291852786,-518.61,0.0001452,2]
[340479834,1729291852797,-940.92,0.0001452,2]
[340479835,1729291852806,-500.0,0.0001452,2]
[340479836,1729291852816,-500.0,0.0001452,2]
[340479837,1729291852826,-545.62,0.0001452,2]
[340479838,1729291852835,-1590.53,0.0001452,2]
[340479839,1729291852846,-655.37,0.0001452,2]
[340479840,1729291852856,-1005.93,0.0001452,2]
[340479841,1729291852866,-500.0,0.0001452,2]
[340479842,1729291852876,-500.0,0.0001452,2]
[340479843,1729291852886,-500.0,0.0001452,2]
[340479844,1729291852896,-560.93,0.0001452,2]
[340479845,1729291852909,-1345.81,0.0001452,2]
[340479846,1729291852920,-500.0,0.0001452,2]
[340479847,1729291852929,-500.0,0.0001452,2]
[340479848,1729291852939,-487.30551456,0.0001452,2]
[340479849,1729291852949,-808.47,0.0001452,2]
[340479850,1729291852958,-500.0,0.0001452,2]
[340479851,1729291852969,-500.0,0.0001452,2]
[340479852,1729291852979,-958.47,0.0001452,2]
[340479853,1729291852989,-500.0,0.0001452,2]
[340479854,1729291852999,-500.0,0.0001452,2]
[340479855,1729291853010,-725.08,0.0001452,2]
[340479856,1729291853020,-489.22725446,0.0001452,2]
[340479857,1729291853030,-606.85,0.0001452,2]
[340479858,1729291853041,-995.34,0.0001452,2]
[340479859,1729291853052,-500.0,0.0001452,2]
[340479860,1729291853062,-1927.12,0.0001452,2]
[340479861,1729291853074,-500.0,0.0001452,2]
[340479862,1729291853084,-500.0,0.0001452,2]
[340479863,1729291853094,-500.0,0.0001452,2]
[340479864,1729291853104,-684.7,0.0001452,2]
[340479865,1729291853119,-633.19,0.0001452,2]
[340479866,1729291853130,-659.75,0.0001452,2]
[340479867,1729291853142,-507.67438978,0.0001452,2]
[340479868,1729291853152,-607.03,0.0001452,2]
[340479869,1729291853162,-500.0,0.0001452,2]
[340479870,1729291853172,-500.0,0.0001452,2]
[340479871,1729291853182,-500.0,0.0001452,2]
[340479872,1729291853192,-582.52,0.0001452,2]
[340479873,1729291853202,-500.0,0.0001452,2]
[340479874,1729291853212,-500.0,0.0001452,2]
[340479875,1729291853221,-500.0,0.0001452,2]
[340479876,1729291853231,-981.61,0.0001452,2]
[340479877,1729291853242,-500.0,0.0001452,2]
[340479878,1729291853251,-1829.57,0.0001452,2]
[340479879,1729291853262,-1010.37,0.0001452,2]
[340479880,1729291853272,-794.19,0.0001452,2]
[340479881,1729291853282,-500.0,0.0001452,2]
[340479882,1729291853291,-962.66,0.0001452,2]
[340479883,1729291853301,-760.7,0.0001452,2]
[340479884,1729291853310,-2750.42,0.0001452,2]
[340479885,1729291853321,-744.46,0.0001452,2]
[340479886,1729291853331,-284.27272357,0.0001452,2]
[340479887,1729291853343,-500.0,0.0001452,2]
[340479888,1729291853354,-500.0,0.0001452,2]
[340479889,1729291853364,-670.38,0.0001452,2]
[340479890,1729291853375,-500.0,0.0001452,2]
[340479891,1729291853385,-874.82,0.0001452,2]
[340479892,1729291853396,-500.0,0.0001452,2]
[340479893,1729291853405,-500.0,0.0001452,2]
[340479894,1729291853417,-500.0,0.0001452,2]
[340479895,1729291853428,-956.55,0.0001452,2]
[340479896,1729291853438,-500.0,0.0001452,2]
[340479897,1729291853448,-639.04,0.0001452,2]
[340479898,1729291853458,-500.0,0.0001452,2]
[340479899,1729291853469,-831.11,0.0001452,2]
[340479900,1729291853479,-500.0,0.0001452,2]
[340479901,1729291853492,-506.71,0.0001452,2]
[340479902,1729291853502,-500.0,0.0001452,2]
[340479903,1729291853515,-1189.28,0.0001452,2]
[340479904,1729291853526,-544.67,0.0001452,2]
[340479905,1729291853538,-572.11,0.0001452,2]
[340479906,1729291853550,-500.0,0.0001452,2]
[340479907,1729291853561,-861.55,0.0001452,2]
[340479908,1729291853571,-500.0,0.0001452,2]
[340479909,1729291853583,-500.0,0.0001452,2]
[340479910,1729291853593,-588.16401545,0.0001452,2]
[340479911,1729291853606,-671.0,0.0001452,2]
[340479912,1729291853615,-500.0,0.0001452,2]
[340479913,1729291853625,-500.0,0.0001452,2]
[340479914,1729291853635,-500.0,0.0001452,2]
[340479915,1729291853645,-500.0,0.0001452,2]
[340479916,1729291853655,-1034.67,0.0001452,2]
[340479917,1729291853665,-500.0,0.0001452,2]
[340479918,1729291853675,-1730.12,0.0001452,2]
[340479919,1729291853688,-500.0,0.0001452,2]
[340479920,1729291853699,-500.0,0.0001452,2]
[340479921,1729291853708,-500.0,0.0001452,2]
[340479922,1729291853718,-500.0,0.0001452,2]
[340479923,1729291853728,-1845.83,0.0001452,2]
[340479924,1729291853741,-500.0,0.0001452,2]
[340479925,1729291853751,-1306.8,0.0001452,2]
[340479926,1729291853762,-680.84,0.0001452,2]
[340479927,1729291853771,-667.45,0.0001452,2]
[340479928,1729291853781,-500.0,0.0001452,2]
[340479929,1729291853791,-856.47,0.0001452,2]
[340479930,1729291853801,-500.0,0.0001452,2]
[340479931,1729291853811,-853.95,0.0001452,2]
[340479932,1729291853822,-1778.08,0.0001452,2]
[340479933,1729291853832,-500.0,0.0001452,2]
[340479934,1729291853842,-616.44,0.0001452,2]
[340479935,1729291853853,-2120.38,0.0001452,2]
[340479936,1729291853863,-500.0,0.0001452,2]
[340479937,1729291853873,-505.13,0.0001452,2]
[340479938,1729291853884,-638.22,0.0001452,2]
[340479939,1729291853895,-500.0,0.0001452,2]
[340479940,1729291853906,-500.0,0.0001452,2]
[340479941,1729291853918,-500.0,0.0001452,2]
[340479942,1729291853930,-552.77,0.0001452,2]
[340479943,1729291853942,-500.0,0.0001452,2]
[340479944,1729291853953,-1243.09,0.0001452,2]
[340479945,1729291853963,-500.0,0.0001452,2]
[340479946,1729291853974,-1877.71,0.0001452,2]
[340479947,1729291853985,-904.73,0.0001452,2]
[340479948,1729291853997,-1020.94,0.0001452,2]
[340479949,1729291854008,-853.41,0.0001452,2]
[340479950,1729291854018,-512.28,0.0001452,2]
[340479951,1729291854029,-500.0,0.0001452,2]
[340479952,1729291854040,-500.0,0.0001452,2]
[340479953,1729291854053,-500.0,0.0001452,2]
[340479954,1729291854064,-806.34,0.0001452,2]
[340479955,1729291854074,-500.0,0.0001452,2]
[340479956,1729291854085,-1095.06,0.0001452,2]
[340479957,1729291854096,-747.11,0.0001452,2]
[340479958,1729291854106,-1119.35,0.0001452,2]
[340479959,1729291854116,-668.58,0.0001452,2]
[340479960,1729291854129,-1416.54,0.0001452,2]
[340479961,1729291854140,-846.55,0.0001452,2]
[340479962,1729291854150,-500.0,0.0001452,2]
[340479963,1729291854160,-1243.22,0.0001452,2]
[340479964,1729291854170,-500.0,0.0001452,2]
[340479965,1729291854181,-514.85,0.0001452,2]
[340479966,1729291854191,-669.01,0.0001452,2]
[340479967,1729291854201,-673.18,0.0001452,2]
[340479968,1729291854211,-542.97,0.0001452,2]
[340479969,1729291854221,-539.5,0.0001452,2]
[340479970,1729291854233,-936.78,0.0001452,2]
[340479971,1729291854244,-726.96,0.0001452,2]
[340479972,1729291854255,-500.0,0.0001452,2]
[340479973,1729291854265,-971.17,0.0001452,2]
[340479974,1729291854275,-5586.53,0.0001452,2]
[340479975,1729291854285,-1862.55,0.0001452,2]
[340479976,1729291854295,-550.21,0.0001452,2]
[340479977,1729291854305,-1290.46,0.0001452,2]
[340479978,1729291854315,-500.0,0.0001452,2]
[340479979,1729291854325,-742.47,0.0001452,2]
[340479980,1729291854336,-1419.77,0.0001452,2]
[340479981,1729291854346,-1014.6,0.0001452,2]
[340479982,1729291854356,-505.28,0.0001452,2]
[340479983,1729291854367,-500.0,0.0001452,2]
[340479984,1729291854377,-500.0,0.0001452,2]
[340479985,1729291854388,-768.91,0.0001452,2]
[340479986,1729291854398,-500.0,0.0001452,2]
[340479987,1729291854408,-556.94,0.0001452,2]
[340479988,1729291854419,-1030.46,0.0001452,2]
[340479989,1729291854428,-500.0,0.0001452,2]
[340479990,1729291854439,-1160.09,0.0001452,2]
[340479991,1729291854450,-994.82,0.0001452,2]
[340479992,1729291854460,-333.16896938,0.0001452,2]
[340479993,1729291854470,-500.0,0.0001452,2]
[340479994,1729291854480,-515.12,0.0001452,2]
[340479995,1729291854490,-883.44,0.0001452,2]
[340479996,1729291854500,-1048.82,0.0001452,2]
[340479997,1729291854511,-43835.78,0.0001452,2]
[340479998,1729291854520,-739.77,0.0001452,2]
[340479999,1729291854530,-500.0,0.0001452,2]
[340480000,1729291854541,-1185.43,0.0001452,2]
[340480001,1729291854551,-5542.64,0.0001452,2]
[340480002,1729291854562,-535.73,0.0001452,2]
[340480003,1729291854572,-500.0,0.0001452,2]
[340480004,1729291854582,-372.29532984,0.0001452,2]
[340480005,1729291854592,-681.76,0.0001452,2]
[340480006,1729291854613,-500.0,0.0001452,2]
[340480007,1729291854626,-714.78,0.0001452,2]
[340480008,1729291854636,-175.954252,0.00014645,2]
[340480009,1729291854648,-332.46,0.000147,2]
[340480010,1729291854658,-218.0,0.0001479,2]
[340480011,1729291854668,-518.46,0.00014794,2]
[340480012,1729291854680,-728.58,0.00014794,2]
[340480013,1729291854690,-671.75,0.00014794,2]
[340480014,1729291854700,-706.39,0.00014794,2]
[340480015,1729291854710,-1056.77,0.00014794,2]
[340480016,1729291854720,-500.0,0.00014794,2]
[340480017,1729291854730,-629.46,0.00014794,2]
[340480018,1729291854740,-607.53,0.00014794,2]
[340480019,1729291854751,-500.0,0.00014794,2]
[340480020,1729291854761,-649.49,0.00014794,2]
[340480021,1729291854771,-674.46,0.00014794,2]
[340480022,1729291854781,-636.58374744,0.00014794,2]
[340480023,1729291854791,-500.0,0.00014794,2]
[340480024,1729291854801,-829.82,0.00014794,2]
[340480025,1729291854811,-663.46,0.00014794,2]
[340480026,1729291854821,-614.35,0.00014794,2]
[340480027,1729291854831,-500.0,0.00014794,2]
[340480028,1729291854841,-500.0,0.00014794,2]
[340480029,1729291854851,-580.4,0.00014794,2]
[340480030,1729291854861,-949.53,0.00014794,2]
[340480031,1729291854871,-500.0,0.00014794,2]
[340480032,1729291854881,-701.62,0.00014794,2]
[340480033,1729291854891,-833.17,0.00014794,2]
[340480034,1729291854901,-633.06,0.00014794,2]
[340480035,1729291854911,-1000.0,0.00014794,2]
[340480036,1729291854922,-906.63,0.00014794,2]
[340480037,1729291854932,-673.81,0.00014794,2]
[340480038,1729291854942,-748.02,0.00014794,2]
[340480039,1729291854952,-350.83637108,0.00014794,2]
[340480040,1729291854962,-627.0,0.00014794,2]
[340480041,1729291854971,-518.61,0.00014794,2]
[340480042,1729291854981,-940.92,0.00014794,2]
[340480043,1729291854991,-500.0,0.00014794,2]
[340480044,1729291855001,-500.0,0.00014794,2]
[340480045,1729291855012,-1590.53,0.00014794,2]
[340480046,1729291855022,-545.62,0.00014794,2]
[340480047,1729291855032,-655.37,0.00014794,2]
[340480048,1729291855044,-1005.93,0.00014794,2]